[Event "Early-Titled-Tuesday-Blitz-November-28-2023"]
[Site "Chess.com"]
[Date "2023.11.28"]
[Round "9"]
[White "Aslanov_Umid"]
[Black "Zavgorodniy_Sergiy"]
[Result "1/2-1/2"]
[WhiteElo "2535"]
[BlackElo "2692"]
[TimeControl "180+1"]
[EndTime "9:50:11 PST"]
[Termination "Game drawn by repetition"]

1. e4 {[%clk 0:03:00.9]} 1... e5 {[%clk 0:02:57.4]} 2. Nf3 {[%clk 0:03:01.2]}
2... d6 {[%clk 0:02:56.9]} 3. d4 {[%clk 0:03:01.1]} 3... exd4 {[%clk 0:02:56.9]}
4. Nxd4 {[%clk 0:03:02]} 4... Nf6 {[%clk 0:02:56.8]} 5. Nc3 {[%clk 0:03:02.6]}
5... Be7 {[%clk 0:02:57]} 6. g3 {[%clk 0:03:03.3]} 6... Bg4 {[%clk 0:02:56.2]}
7. Qd2 {[%clk 0:02:55.6]} 7... c5 {[%clk 0:02:48.2]} 8. Nf5 {[%clk 0:02:55.9]}
8... Bxf5 {[%clk 0:02:37.7]} 9. exf5 {[%clk 0:02:56.8]} 9... d5 {[%clk
0:02:22.7]} 10. Bg2 {[%clk 0:02:55.2]} 10... d4 {[%clk 0:02:23]} 11. Ne4 {[%clk
0:02:54.4]} 11... Nbd7 {[%clk 0:02:21.8]} 12. O-O {[%clk 0:02:53.6]} 12... O-O
{[%clk 0:02:17.7]} 13. Nxf6+ {[%clk 0:02:51.4]} 13... Bxf6 {[%clk 0:02:11.8]}
14. Bxb7 {[%clk 0:02:51.7]} 14... Rb8 {[%clk 0:02:12.3]} 15. Bg2 {[%clk
0:02:51.7]} 15... Ne5 {[%clk 0:02:10.2]} 16. b3 {[%clk 0:02:38]} 16... c4 {[%clk
0:01:57.3]} 17. Ba3 {[%clk 0:02:37.3]} 17... Re8 {[%clk 0:01:56.7]} 18. Rad1
{[%clk 0:02:27]} 18... d3 {[%clk 0:01:53.3]} 19. Bb2 {[%clk 0:02:21.7]} 19...
dxc2 {[%clk 0:01:39.5]} 20. Qxc2 {[%clk 0:02:18.6]} 20... cxb3 {[%clk
0:01:40.2]} 21. axb3 {[%clk 0:02:10.8]} 21... Qb6 {[%clk 0:01:36.8]} 22. Rfe1
{[%clk 0:01:59.4]} 22... h6 {[%clk 0:01:30.7]} 23. Be4 {[%clk 0:01:27.3]} 23...
Qxb3 {[%clk 0:01:25.4]} 24. Qxb3 {[%clk 0:01:27.5]} 24... Rxb3 {[%clk
0:01:25.9]} 25. Bxe5 {[%clk 0:01:27.4]} 25... Rxe5 {[%clk 0:01:22.4]} 26. Bd5
{[%clk 0:01:24]} 26... Rxe1+ {[%clk 0:01:14.7]} 27. Rxe1 {[%clk 0:01:24.9]}
27... Rb8 {[%clk 0:01:11.6]} 28. Rc1 {[%clk 0:01:25]} 28... Bd4 {[%clk
0:00:52.7]} 29. Rc7 {[%clk 0:01:07]} 29... Rf8 {[%clk 0:00:45.5]} 30. Rd7 {[%clk
0:01:01.9]} 30... Bb6 {[%clk 0:00:42.9]} 31. Rb7 {[%clk 0:01:01]} 31... Bc5
{[%clk 0:00:42.1]} 32. Rc7 {[%clk 0:01:01.2]} 32... Bb6 {[%clk 0:00:42.1]} 33.
Rb7 {[%clk 0:01:01.9]} 33... Bc5 {[%clk 0:00:42.4]} 34. Rc7 {[%clk 0:01:02.6]}
34... Bb6 {[%clk 0:00:42.6]} 35. Rb7 {[%clk 0:01:03.3]} 1/2-1/2

[Event "Early-Titled-Tuesday-Blitz-November-28-2023"]
[Site "Chess.com"]
[Date "2023.11.28"]
[Round "9"]
[White "Lady_Nika"]
[Black "Igor_Lysyj"]
[Result "0-1"]
[WhiteElo "2572"]
[BlackElo "2803"]
[TimeControl "180+1"]
[EndTime "9:50:12 PST"]
[Termination "Igor_Lysyj won by resignation"]

1. e4 {[%clk 0:03:00.9]} 1... e5 {[%clk 0:02:59.6]} 2. Nf3 {[%clk 0:03:00.8]}
2... Nc6 {[%clk 0:02:59.6]} 3. Bb5 {[%clk 0:03:00.8]} 3... a6 {[%clk 0:02:59.5]}
4. Bxc6 {[%clk 0:03:00.1]} 4... dxc6 {[%clk 0:02:59.4]} 5. O-O {[%clk 0:03:01]}
5... Qf6 {[%clk 0:02:54.6]} 6. d3 {[%clk 0:02:56]} 6... Ne7 {[%clk 0:02:47.5]}
7. Be3 {[%clk 0:02:47.7]} 7... Ng6 {[%clk 0:02:47]} 8. Nbd2 {[%clk 0:02:45.8]}
8... Bd6 {[%clk 0:02:42.7]} 9. Nc4 {[%clk 0:02:44.9]} 9... Bg4 {[%clk
0:02:41.2]} 10. Nxd6+ {[%clk 0:02:30.7]} 10... cxd6 {[%clk 0:02:40]} 11. h3
{[%clk 0:01:58.9]} 11... Bxf3 {[%clk 0:02:33]} 12. Qxf3 {[%clk 0:01:58.5]} 12...
Qxf3 {[%clk 0:02:32.9]} 13. gxf3 {[%clk 0:01:58.5]} 13... O-O {[%clk 0:02:33]}
14. Kh2 {[%clk 0:01:55.3]} 14... f5 {[%clk 0:02:32.4]} 15. Bg5 {[%clk
0:01:11.6]} 15... h6 {[%clk 0:02:28.1]} 16. Bd2 {[%clk 0:00:44.2]} 16... f4
{[%clk 0:02:10.3]} 17. Bc3 {[%clk 0:00:20.6]} 17... Nh4 {[%clk 0:02:07.4]} 18.
Kh1 {[%clk 0:00:17.4]} 18... Nxf3 {[%clk 0:02:04.1]} 19. Rad1 {[%clk 0:00:16.9]}
19... c5 {[%clk 0:02:02]} 20. b3 {[%clk 0:00:14.2]} 20... a5 {[%clk 0:01:51.1]}
21. a4 {[%clk 0:00:13.8]} 21... b6 {[%clk 0:01:51.1]} 22. Bb2 {[%clk 0:00:08.6]}
22... Rf6 {[%clk 0:01:49.1]} 23. c3 {[%clk 0:00:07.8]} 23... Rc8 {[%clk
0:01:47.1]} 24. c4 {[%clk 0:00:05.7]} 24... Rg6 {[%clk 0:01:45.3]} 25. Bc1
{[%clk 0:00:04.2]} 25... Rf8 {[%clk 0:01:42.4]} 26. Bb2 {[%clk 0:00:04.1]} 26...
Rff6 {[%clk 0:01:40.9]} 27. Rc1 {[%clk 0:00:02.7]} 27... Rg5 {[%clk 0:01:38.3]}
28. Rc2 {[%clk 0:00:03.1]} 28... Rfg6 {[%clk 0:01:37.3]} 29. Rcc1 {[%clk
0:00:02.2]} 29... Rg2 {[%clk 0:01:36.7]} 0-1

[Event "Early-Titled-Tuesday-Blitz-November-28-2023"]
[Site "Chess.com"]
[Date "2023.11.28"]
[Round "9"]
[White "Laico"]
[Black "Gyulamiryan-koryun"]
[Result "1-0"]
[WhiteElo "2339"]
[BlackElo "1940"]
[TimeControl "180+1"]
[EndTime "9:50:15 PST"]
[Termination "Laico won on time"]

1. e4 {[%clk 0:02:57.9]} 1... e5 {[%clk 0:02:54.1]} 2. Nc3 {[%clk 0:02:57]} 2...
Nc6 {[%clk 0:02:48.9]} 3. Bc4 {[%clk 0:02:54]} 3... Nf6 {[%clk 0:02:47.8]} 4. d3
{[%clk 0:02:53.8]} 4... Na5 {[%clk 0:02:47.4]} 5. Bb3 {[%clk 0:02:51.3]} 5...
Nxb3 {[%clk 0:02:47.4]} 6. axb3 {[%clk 0:02:52.2]} 6... a6 {[%clk 0:02:47.1]} 7.
Bg5 {[%clk 0:02:51.8]} 7... Be7 {[%clk 0:02:46.8]} 8. f4 {[%clk 0:02:51.9]} 8...
exf4 {[%clk 0:02:38.6]} 9. Nf3 {[%clk 0:02:50.6]} 9... d6 {[%clk 0:02:36.6]} 10.
O-O {[%clk 0:02:43.7]} 10... O-O {[%clk 0:02:35.6]} 11. Bxf4 {[%clk 0:02:42.3]}
11... Bg4 {[%clk 0:02:26.2]} 12. Qe1 {[%clk 0:02:41.7]} 12... Bh5 {[%clk
0:02:24.1]} 13. Nd4 {[%clk 0:02:36.5]} 13... Bg6 {[%clk 0:02:12.3]} 14. Be3
{[%clk 0:02:25.5]} 14... c6 {[%clk 0:02:10.5]} 15. Nf5 {[%clk 0:02:24.6]} 15...
Bxf5 {[%clk 0:01:57]} 16. Rxf5 {[%clk 0:02:25.5]} 16... Re8 {[%clk 0:01:44.1]}
17. Qg3 {[%clk 0:02:24.6]} 17... g6 {[%clk 0:01:41.9]} 18. Raf1 {[%clk
0:02:24.2]} 18... Kh8 {[%clk 0:01:14.9]} 19. Bh6 {[%clk 0:02:23.4]} 19... Rg8
{[%clk 0:01:05.9]} 20. R5f3 {[%clk 0:02:14.9]} 20... Nh5 {[%clk 0:00:58.5]} 21.
Qf2 {[%clk 0:02:12.2]} 21... f6 {[%clk 0:00:50.8]} 22. Be3 {[%clk 0:01:54.9]}
22... b5 {[%clk 0:00:38.1]} 23. Bd4 {[%clk 0:01:35.3]} 23... b4 {[%clk
0:00:26.5]} 24. g4 {[%clk 0:01:34.6]} 24... c5 {[%clk 0:00:13.5]} 25. gxh5
{[%clk 0:01:24.5]} 25... gxh5+ {[%clk 0:00:08.9]} 26. Kh1 {[%clk 0:01:24]} 26...
cxd4 {[%clk 0:00:09]} 27. Nd5 {[%clk 0:01:24.4]} 1-0

[Event "Early-Titled-Tuesday-Blitz-November-28-2023"]
[Site "Chess.com"]
[Date "2023.11.28"]
[Round "9"]
[White "JimDiGrease"]
[Black "djano"]
[Result "1-0"]
[WhiteElo "2936"]
[BlackElo "2577"]
[TimeControl "180+1"]
[EndTime "9:50:16 PST"]
[Termination "JimDiGrease won by resignation"]

1. d4 {[%clk 0:03:00.9]} 1... d5 {[%clk 0:02:59.8]} 2. c4 {[%clk 0:03:00.7]}
2... e6 {[%clk 0:03:00.4]} 3. Nf3 {[%clk 0:03:00.7]} 3... Nf6 {[%clk 0:02:59.7]}
4. Qc2 {[%clk 0:03:01.3]} 4... c5 {[%clk 0:02:58.9]} 5. dxc5 {[%clk 0:03:00.3]}
5... Bxc5 {[%clk 0:02:58.6]} 6. cxd5 {[%clk 0:03:00.7]} 6... Qb6 {[%clk
0:02:57.7]} 7. e3 {[%clk 0:02:58.9]} 7... Nxd5 {[%clk 0:02:57.6]} 8. a3 {[%clk
0:02:54]} 8... Nc6 {[%clk 0:02:50.2]} 9. Bd3 {[%clk 0:02:53]} 9... Nf6 {[%clk
0:02:41.2]} 10. Nc3 {[%clk 0:02:52.7]} 10... Bd6 {[%clk 0:02:37.2]} 11. O-O
{[%clk 0:02:51.8]} 11... O-O {[%clk 0:02:37.1]} 12. Ne4 {[%clk 0:02:51.9]} 12...
Nxe4 {[%clk 0:02:36.2]} 13. Bxe4 {[%clk 0:02:52.8]} 13... f5 {[%clk 0:02:35.8]}
14. Bd3 {[%clk 0:02:46.6]} 14... e5 {[%clk 0:02:33.9]} 15. Bc4+ {[%clk
0:02:30.5]} 15... Kh8 {[%clk 0:02:33.3]} 16. Ng5 {[%clk 0:02:31.2]} 16... Qc7
{[%clk 0:02:17.4]} 17. Rd1 {[%clk 0:02:31]} 17... e4 {[%clk 0:01:59.7]} 18. Nf7+
{[%clk 0:02:28]} 18... Rxf7 {[%clk 0:01:59]} 19. Bxf7 {[%clk 0:02:28.9]} 19...
Bxh2+ {[%clk 0:01:54.6]} 20. Kh1 {[%clk 0:02:29.3]} 20... Qxf7 {[%clk
0:01:41.9]} 21. Kxh2 {[%clk 0:02:29.1]} 21... Be6 {[%clk 0:01:36.4]} 22. Bd2
{[%clk 0:02:24]} 22... Ne5 {[%clk 0:01:36.1]} 23. Bb4 {[%clk 0:01:52.5]} 23...
Qh5+ {[%clk 0:01:26.5]} 24. Kg1 {[%clk 0:01:52.1]} 24... Bc4 {[%clk 0:00:59]}
25. Bd6 {[%clk 0:01:40.8]} 25... Nf3+ {[%clk 0:00:42.8]} 26. gxf3 {[%clk
0:01:33.6]} 26... exf3 {[%clk 0:00:43.7]} 27. Qxc4 {[%clk 0:01:30.9]} 27... Re8
{[%clk 0:00:23.6]} 28. Bg3 {[%clk 0:01:28.1]} 28... h6 {[%clk 0:00:20.2]} 29.
Rd4 {[%clk 0:01:27]} 29... Rxe3 {[%clk 0:00:12]} 30. Rd8+ {[%clk 0:01:22.4]}
30... Kh7 {[%clk 0:00:12.2]} 31. Qg8+ {[%clk 0:01:22.4]} 31... Kg6 {[%clk
0:00:12.3]} 32. Rd6+ {[%clk 0:01:23.3]} 32... Kg5 {[%clk 0:00:12]} 33. Qxg7+
{[%clk 0:01:23.7]} 1-0

[Event "Early-Titled-Tuesday-Blitz-November-28-2023"]
[Site "Chess.com"]
[Date "2023.11.28"]
[Round "9"]
[White "MaxLeto"]
[Black "Casper"]
[Result "0-1"]
[WhiteElo "2537"]
[BlackElo "2437"]
[TimeControl "180+1"]
[EndTime "9:50:18 PST"]
[Termination "Casper won on time"]

1. g4 {[%clk 0:02:31.6]} 1... d5 {[%clk 0:02:59.3]} 2. Bg2 {[%clk 0:02:30.8]}
2... Bxg4 {[%clk 0:02:59.9]} 3. c4 {[%clk 0:02:29.8]} 3... e6 {[%clk 0:03:00.2]}
4. Qb3 {[%clk 0:02:28.5]} 4... Nc6 {[%clk 0:02:42.4]} 5. cxd5 {[%clk 0:02:12.5]}
5... exd5 {[%clk 0:02:28.8]} 6. Bxd5 {[%clk 0:01:46.4]} 6... Nd4 {[%clk
0:01:57.1]} 7. Qa4+ {[%clk 0:01:20.2]} 7... c6 {[%clk 0:01:57.2]} 8. Qxd4 {[%clk
0:00:55.1]} 8... Qxd5 {[%clk 0:01:57.5]} 9. Qxd5 {[%clk 0:00:55]} 9... cxd5
{[%clk 0:01:58.4]} 10. Nc3 {[%clk 0:00:54.2]} 10... Nf6 {[%clk 0:01:58.8]} 11.
d4 {[%clk 0:00:53.2]} 11... Rc8 {[%clk 0:01:57.3]} 12. Bd2 {[%clk 0:00:53]}
12... Bd6 {[%clk 0:01:55.2]} 13. h3 {[%clk 0:00:50.4]} 13... Bf5 {[%clk
0:01:51.7]} 14. Nf3 {[%clk 0:00:49.1]} 14... O-O {[%clk 0:01:51.8]} 15. Rc1
{[%clk 0:00:34.6]} 15... Rfe8 {[%clk 0:01:48.9]} 16. e3 {[%clk 0:00:19.2]} 16...
Bd3 {[%clk 0:01:46.7]} 17. Rg1 {[%clk 0:00:15]} 17... Bb4 {[%clk 0:01:45.8]} 18.
a3 {[%clk 0:00:14.7]} 18... Ba5 {[%clk 0:01:44]} 19. b4 {[%clk 0:00:14.1]} 19...
Bc7 {[%clk 0:01:44.6]} 20. Na4 {[%clk 0:00:11.7]} 20... b6 {[%clk 0:01:40.4]}
21. Nb2 {[%clk 0:00:11.1]} 21... Bf5 {[%clk 0:01:35.2]} 22. h4 {[%clk
0:00:08.5]} 22... Bg4 {[%clk 0:01:32.7]} 23. Ke2 {[%clk 0:00:03.9]} 23... h5
{[%clk 0:01:31.1]} 24. Nd3 {[%clk 0:00:04.2]} 24... Ne4 {[%clk 0:01:30.2]} 25.
Bc3 {[%clk 0:00:03.5]} 25... Bh2 {[%clk 0:01:26.7]} 26. Rh1 {[%clk 0:00:02.8]}
26... Nxc3+ {[%clk 0:01:25.8]} 27. Rxc3 {[%clk 0:00:01.6]} 27... Rxc3 {[%clk
0:01:26.7]} 28. Rxh2 {[%clk 0:00:02.1]} 28... Bxf3+ {[%clk 0:01:27.4]} 29. Kd2
{[%clk 0:00:01]} 29... Rxa3 {[%clk 0:01:27.2]} 30. Nf4 {[%clk 0:00:01.4]} 30...
Rc8 {[%clk 0:01:25.6]} 0-1

[Event "Early-Titled-Tuesday-Blitz-November-28-2023"]
[Site "Chess.com"]
[Date "2023.11.28"]
[Round "9"]
[White "Aradhya2000"]
[Black "sumopork"]
[Result "0-1"]
[WhiteElo "2712"]
[BlackElo "2832"]
[TimeControl "180+1"]
[EndTime "9:50:21 PST"]
[Termination "sumopork won by resignation"]

1. d4 {[%clk 0:03:00.9]} 1... g6 {[%clk 0:02:59.9]} 2. e4 {[%clk 0:02:58]} 2...
Bg7 {[%clk 0:02:59.8]} 3. Nf3 {[%clk 0:02:58.4]} 3... d6 {[%clk 0:03:00]} 4. Nc3
{[%clk 0:02:58.1]} 4... a6 {[%clk 0:03:00]} 5. Be3 {[%clk 0:02:55.3]} 5... b5
{[%clk 0:02:59.8]} 6. a4 {[%clk 0:02:54.2]} 6... b4 {[%clk 0:02:59.3]} 7. Ne2
{[%clk 0:02:54.8]} 7... Bb7 {[%clk 0:02:58.9]} 8. Ng3 {[%clk 0:02:54.7]} 8...
Nd7 {[%clk 0:02:59]} 9. Bd3 {[%clk 0:02:54.1]} 9... c5 {[%clk 0:02:58.9]} 10. c3
{[%clk 0:02:50.2]} 10... bxc3 {[%clk 0:02:57.4]} 11. bxc3 {[%clk 0:02:51.1]}
11... Ngf6 {[%clk 0:02:57.5]} 12. O-O {[%clk 0:02:47]} 12... O-O {[%clk
0:02:57.1]} 13. h3 {[%clk 0:02:44.7]} 13... Qa5 {[%clk 0:02:55.8]} 14. Qb3
{[%clk 0:02:37]} 14... Rab8 {[%clk 0:02:52.8]} 15. Qa3 {[%clk 0:02:37]} 15... d5
{[%clk 0:02:40.1]} 16. e5 {[%clk 0:02:23.6]} 16... Ne4 {[%clk 0:02:40.1]} 17.
Bxe4 {[%clk 0:02:19.2]} 17... dxe4 {[%clk 0:02:41]} 18. Nd2 {[%clk 0:02:19.5]}
18... f5 {[%clk 0:02:16.3]} 19. exf6 {[%clk 0:02:11.3]} 19... Nxf6 {[%clk
0:02:11.5]} 20. Qxc5 {[%clk 0:02:03.4]} 20... Qxc5 {[%clk 0:02:02.9]} 21. dxc5
{[%clk 0:02:03.6]} 21... Nd5 {[%clk 0:02:03.1]} 22. Ndxe4 {[%clk 0:01:49.5]}
22... Nxe3 {[%clk 0:02:02.5]} 23. fxe3 {[%clk 0:01:49.6]} 23... Rxf1+ {[%clk
0:02:02.5]} 24. Rxf1 {[%clk 0:01:45.4]} 24... Bc6 {[%clk 0:02:02.5]} 25. a5
{[%clk 0:01:18.9]} 25... Be5 {[%clk 0:01:56.2]} 26. Rd1 {[%clk 0:00:46.8]} 26...
Kg7 {[%clk 0:01:40.6]} 27. Kf2 {[%clk 0:00:38.2]} 27... Rb5 {[%clk 0:01:34.1]}
28. Nd2 {[%clk 0:00:33.9]} 28... Rxa5 {[%clk 0:01:24]} 29. c4 {[%clk 0:00:29.1]}
29... Ra2 {[%clk 0:01:22.2]} 30. Ne2 {[%clk 0:00:29]} 30... Ba4 {[%clk
0:01:16.8]} 31. Nc1 {[%clk 0:00:28.7]} 31... Rb2 {[%clk 0:01:15.8]} 32. Nd3
{[%clk 0:00:28.7]} 32... Bxd1 {[%clk 0:01:15.3]} 33. Nxb2 {[%clk 0:00:26.8]}
33... Bxb2 {[%clk 0:01:14.3]} 34. c6 {[%clk 0:00:26.5]} 34... Be5 {[%clk
0:01:12.7]} 35. Nb3 {[%clk 0:00:26.3]} 35... Bxb3 {[%clk 0:01:12]} 0-1

[Event "Early-Titled-Tuesday-Blitz-November-28-2023"]
[Site "Chess.com"]
[Date "2023.11.28"]
[Round "9"]
[White "Savagelittlemole"]
[Black "jamengrand"]
[Result "0-1"]
[WhiteElo "2480"]
[BlackElo "2291"]
[TimeControl "180+1"]
[EndTime "9:50:21 PST"]
[Termination "jamengrand won by resignation"]

1. e4 {[%clk 0:03:00.9]} 1... Nc6 {[%clk 0:02:59.4]} 2. Bb5 {[%clk 0:02:59.6]}
2... e5 {[%clk 0:02:57.7]} 3. Nc3 {[%clk 0:02:58.9]} 3... Nf6 {[%clk 0:02:56.9]}
4. Nge2 {[%clk 0:02:58.7]} 4... Nd4 {[%clk 0:02:54.6]} 5. Bc4 {[%clk 0:02:48.1]}
5... Bc5 {[%clk 0:02:52.3]} 6. O-O {[%clk 0:02:47.6]} 6... d6 {[%clk 0:02:52.3]}
7. d3 {[%clk 0:02:48]} 7... Bg4 {[%clk 0:02:51.3]} 8. Kh1 {[%clk 0:02:34.8]}
8... Nxe2 {[%clk 0:02:47.4]} 9. Nxe2 {[%clk 0:02:33.8]} 9... c6 {[%clk
0:02:41.6]} 10. f3 {[%clk 0:02:27.9]} 10... Be6 {[%clk 0:02:37.8]} 11. Bxe6
{[%clk 0:02:23.7]} 11... fxe6 {[%clk 0:02:37.6]} 12. d4 {[%clk 0:02:23.9]} 12...
Bb6 {[%clk 0:02:32.3]} 13. dxe5 {[%clk 0:02:16.8]} 13... dxe5 {[%clk 0:02:33.2]}
14. Bg5 {[%clk 0:02:16.3]} 14... Qxd1 {[%clk 0:02:22.5]} 15. Rfxd1 {[%clk
0:02:17.2]} 15... h6 {[%clk 0:02:18.8]} 16. Bh4 {[%clk 0:02:14.7]} 16... Nh5
{[%clk 0:02:10.8]} 17. Bg3 {[%clk 0:02:09.4]} 17... Nxg3+ {[%clk 0:02:09.7]} 18.
hxg3 {[%clk 0:01:56.1]} 18... h5 {[%clk 0:02:08.7]} 19. Kh2 {[%clk 0:01:49.5]}
19... g5 {[%clk 0:02:07.8]} 20. f4 {[%clk 0:01:35.6]} 20... exf4 {[%clk
0:01:51.8]} 21. gxf4 {[%clk 0:01:36.5]} 21... gxf4 {[%clk 0:01:52.1]} 22. Nxf4
{[%clk 0:01:33.2]} 22... Bc7 {[%clk 0:01:52.4]} 23. g3 {[%clk 0:01:33.7]} 23...
h4 {[%clk 0:01:50.2]} 24. Nxe6 {[%clk 0:01:22.8]} 24... hxg3+ {[%clk 0:01:43.1]}
25. Kg2 {[%clk 0:01:22.9]} 25... Be5 {[%clk 0:01:35.6]} 26. c3 {[%clk
0:01:04.9]} 26... Ke7 {[%clk 0:01:35.1]} 27. Nc5 {[%clk 0:00:55.5]} 27... Raf8
{[%clk 0:01:26.3]} 28. Nd3 {[%clk 0:00:17.5]} 28... Rh2+ {[%clk 0:01:22.3]} 29.
Kg1 {[%clk 0:00:17.8]} 29... Bc7 {[%clk 0:01:11.4]} 30. e5 {[%clk 0:00:15.7]}
30... Bb6+ {[%clk 0:01:11.3]} 0-1

[Event "Early-Titled-Tuesday-Blitz-November-28-2023"]
[Site "Chess.com"]
[Date "2023.11.28"]
[Round "9"]
[White "alvarorodriguezavila"]
[Black "salomez"]
[Result "0-1"]
[WhiteElo "2234"]
[BlackElo "2405"]
[TimeControl "180+1"]
[EndTime "9:50:21 PST"]
[Termination "salomez won by resignation"]

1. e4 {[%clk 0:03:00.9]} 1... e6 {[%clk 0:02:59]} 2. d4 {[%clk 0:03:00.8]} 2...
d5 {[%clk 0:02:58]} 3. Nc3 {[%clk 0:03:01.4]} 3... Nf6 {[%clk 0:02:55.9]} 4. e5
{[%clk 0:03:01.4]} 4... Ng8 {[%clk 0:02:55.9]} 5. Nce2 {[%clk 0:02:57.3]} 5...
Bd7 {[%clk 0:02:47.1]} 6. f4 {[%clk 0:02:53.5]} 6... c5 {[%clk 0:02:36.9]} 7. c3
{[%clk 0:02:52.5]} 7... Nc6 {[%clk 0:02:25.9]} 8. Nf3 {[%clk 0:02:52.8]} 8...
Qb6 {[%clk 0:02:23.9]} 9. a3 {[%clk 0:02:49.3]} 9... Nh6 {[%clk 0:02:23]} 10. h4
{[%clk 0:02:42.9]} 10... Nf5 {[%clk 0:02:13.5]} 11. b4 {[%clk 0:02:39.6]} 11...
cxd4 {[%clk 0:02:11.1]} 12. cxd4 {[%clk 0:02:40.1]} 12... a5 {[%clk 0:02:06.5]}
13. b5 {[%clk 0:02:04.6]} 13... Qxb5 {[%clk 0:02:02.2]} 14. Ng3 {[%clk
0:02:05.1]} 14... Qb6 {[%clk 0:01:51.6]} 15. Nxf5 {[%clk 0:02:05]} 15... exf5
{[%clk 0:01:52.4]} 16. Be3 {[%clk 0:01:35.5]} 16... Be7 {[%clk 0:01:39]} 17. Rb1
{[%clk 0:01:29.9]} 17... Qc7 {[%clk 0:01:39.2]} 18. Qb3 {[%clk 0:01:29.4]} 18...
a4 {[%clk 0:01:23.8]} 19. Qa2 {[%clk 0:01:25.1]} 19... O-O {[%clk 0:01:22.5]}
20. Rh3 {[%clk 0:00:59.3]} 20... Na5 {[%clk 0:01:18.8]} 21. Rg3 {[%clk 0:01:00]}
21... Nc4 {[%clk 0:01:12.7]} 22. Bc1 {[%clk 0:01:00.5]} 22... b5 {[%clk
0:01:06.2]} 23. Bd3 {[%clk 0:01:00]} 23... Rab8 {[%clk 0:00:57.1]} 24. Kf1
{[%clk 0:00:58.9]} 24... Kh8 {[%clk 0:00:48.7]} 25. h5 {[%clk 0:00:59.2]} 25...
b4 {[%clk 0:00:31.6]} 26. axb4 {[%clk 0:00:57.6]} 26... Rxb4 {[%clk 0:00:29.5]}
27. Rxb4 {[%clk 0:00:56.7]} 27... Bxb4 {[%clk 0:00:30.4]} 28. Qxa4 {[%clk
0:00:57.2]} 28... Bxa4 {[%clk 0:00:29.6]} 0-1

[Event "Early-Titled-Tuesday-Blitz-November-28-2023"]
[Site "Chess.com"]
[Date "2023.11.28"]
[Round "9"]
[White "ATM622"]
[Black "Let_it_be_1"]
[Result "0-1"]
[WhiteElo "2475"]
[BlackElo "2674"]
[TimeControl "180+1"]
[EndTime "9:50:28 PST"]
[Termination "Let_it_be_1 won by resignation"]

1. d4 {[%clk 0:03:00.9]} 1... d5 {[%clk 0:02:55.1]} 2. c4 {[%clk 0:03:00.1]}
2... e6 {[%clk 0:02:54.6]} 3. Nf3 {[%clk 0:02:59.6]} 3... Nf6 {[%clk 0:02:53.8]}
4. g3 {[%clk 0:02:56.1]} 4... Be7 {[%clk 0:02:53.8]} 5. Bg2 {[%clk 0:02:55.5]}
5... O-O {[%clk 0:02:53.9]} 6. O-O {[%clk 0:02:42.5]} 6... dxc4 {[%clk
0:02:53.2]} 7. Ne5 {[%clk 0:02:42.3]} 7... Nc6 {[%clk 0:02:52.7]} 8. Bxc6 {[%clk
0:02:42.6]} 8... bxc6 {[%clk 0:02:53]} 9. Nxc6 {[%clk 0:02:43.5]} 9... Qe8
{[%clk 0:02:53.4]} 10. Nxe7+ {[%clk 0:02:44.1]} 10... Qxe7 {[%clk 0:02:54.3]}
11. Qc2 {[%clk 0:02:44.8]} 11... e5 {[%clk 0:02:54.6]} 12. dxe5 {[%clk
0:02:44.4]} 12... Qxe5 {[%clk 0:02:54.4]} 13. Bf4 {[%clk 0:02:43.2]} 13... Qc5
{[%clk 0:02:47.5]} 14. Na3 {[%clk 0:02:38.4]} 14... Be6 {[%clk 0:02:43.4]} 15.
Rac1 {[%clk 0:02:36.3]} 15... Rab8 {[%clk 0:02:30.1]} 16. Nxc4 {[%clk
0:02:36.2]} 16... Bxc4 {[%clk 0:02:15.4]} 17. Qxc4 {[%clk 0:02:36]} 17... Qxc4
{[%clk 0:02:15.7]} 18. Rxc4 {[%clk 0:02:36]} 18... Rxb2 {[%clk 0:02:15.9]} 19.
Rxc7 {[%clk 0:02:26.8]} 19... Rxa2 {[%clk 0:02:16.1]} 20. Rd1 {[%clk 0:02:21.5]}
20... Re8 {[%clk 0:02:10.1]} 21. h3 {[%clk 0:02:08.3]} 21... h6 {[%clk
0:02:08.4]} 22. e3 {[%clk 0:01:38.2]} 22... g5 {[%clk 0:01:51.3]} 23. Rc6 {[%clk
0:01:05.8]} 23... Ne4 {[%clk 0:01:46.9]} 24. f3 {[%clk 0:00:16.6]} 24... Nf2
{[%clk 0:01:30.1]} 25. Rd7 {[%clk 0:00:04.1]} 25... gxf4 {[%clk 0:01:27]} 26.
gxf4 {[%clk 0:00:02.2]} 26... Rxe3 {[%clk 0:01:17.9]} 27. Kf1 {[%clk 0:00:02]}
27... Nd3 {[%clk 0:01:12.1]} 28. Rc2 {[%clk 0:00:01.2]} 28... Rxc2 {[%clk
0:01:10.3]} 0-1

[Event "Early-Titled-Tuesday-Blitz-November-28-2023"]
[Site "Chess.com"]
[Date "2023.11.28"]
[Round "9"]
[White "GoValya"]
[Black "esrosenberg"]
[Result "0-1"]
[WhiteElo "2215"]
[BlackElo "2391"]
[TimeControl "180+1"]
[EndTime "9:50:30 PST"]
[Termination "esrosenberg won by resignation"]

1. d4 {[%clk 0:03:00.9]} 1... d5 {[%clk 0:02:57.7]} 2. g3 {[%clk 0:03:00.3]}
2... Nf6 {[%clk 0:02:54.8]} 3. Bg2 {[%clk 0:02:59.9]} 3... c6 {[%clk 0:02:53.2]}
4. Nf3 {[%clk 0:02:58]} 4... Bf5 {[%clk 0:02:52.6]} 5. O-O {[%clk 0:02:56]} 5...
h6 {[%clk 0:02:53.1]} 6. Nbd2 {[%clk 0:02:56]} 6... e6 {[%clk 0:02:50.9]} 7. c4
{[%clk 0:02:55.6]} 7... Nbd7 {[%clk 0:02:50.3]} 8. Re1 {[%clk 0:02:50.9]} 8...
Be7 {[%clk 0:02:45.4]} 9. b3 {[%clk 0:02:42.9]} 9... O-O {[%clk 0:02:44.6]} 10.
Bb2 {[%clk 0:02:42.9]} 10... a5 {[%clk 0:02:45.3]} 11. Rc1 {[%clk 0:02:41.4]}
11... a4 {[%clk 0:02:45]} 12. bxa4 {[%clk 0:02:34.8]} 12... Qa5 {[%clk
0:02:40.5]} 13. Nh4 {[%clk 0:02:19.4]} 13... Bh7 {[%clk 0:02:37.1]} 14. e4
{[%clk 0:02:05.9]} 14... Nxe4 {[%clk 0:02:25.6]} 15. Nxe4 {[%clk 0:01:56.5]}
15... dxe4 {[%clk 0:02:25.5]} 16. Bxe4 {[%clk 0:01:52]} 16... Bxh4 {[%clk
0:02:20.6]} 17. gxh4 {[%clk 0:01:36.5]} 17... Qxa4 {[%clk 0:02:08]} 18. Bxh7+
{[%clk 0:01:32.3]} 18... Kxh7 {[%clk 0:02:08.9]} 19. Qd3+ {[%clk 0:01:30.1]}
19... Kh8 {[%clk 0:02:01.4]} 20. d5 {[%clk 0:01:10.8]} 20... cxd5 {[%clk
0:02:01]} 21. cxd5 {[%clk 0:01:10.4]} 21... Qxh4 {[%clk 0:01:31.9]} 22. dxe6
{[%clk 0:01:02.6]} 22... fxe6 {[%clk 0:01:27.5]} 23. Bxg7+ {[%clk 0:00:27.4]}
23... Kxg7 {[%clk 0:01:27.1]} 24. Qxd7+ {[%clk 0:00:25.1]} 24... Rf7 {[%clk
0:01:27.8]} 25. Qd2 {[%clk 0:00:19.3]} 25... Raf8 {[%clk 0:01:20.6]} 26. Re2
{[%clk 0:00:17.1]} 26... Qg4+ {[%clk 0:01:09.3]} 27. Kh1 {[%clk 0:00:15.9]}
27... Qf3+ {[%clk 0:01:09.6]} 28. Kg1 {[%clk 0:00:15.5]} 28... Kh8 {[%clk
0:01:06.8]} 29. Rc3 {[%clk 0:00:14.2]} 29... Rg7+ {[%clk 0:01:03.4]} 0-1